fUST/lending_fUST_20241225
["ID","MTS","AMOUNT","RATE_DAILY","PERIOD"]
[346550813,1735077038685,-500.0,0.00013697,2]
[346550815,1735077038695,-500.0,0.00013697,2]
[346550817,1735077038704,-500.0,0.00013697,2]
[346550819,1735077038713,-500.0,0.00013697,2]
[346550820,1735077038722,-500.0,0.00013697,2]
[346550821,1735077038731,-500.0,0.00013697,2]
[346550836,1735077038741,-500.0,0.00013697,2]
[346550838,1735077038918,-500.0,0.00013697,2]
[346550840,1735077038928,-500.0,0.00013697,2]
[346550842,1735077038938,-500.0,0.00013697,2]
[346550844,1735077038947,-496.17046755,0.00013697,2]
[346550846,1735077038956,-461.71891879,0.00013697,2]
[346550847,1735077038966,-500.0,0.00013697,2]
[346550848,1735077038975,-500.0,0.00013697,2]
[346550849,1735077038984,-500.0,0.00013697,2]
[346550850,1735077038995,-500.0,0.00013697,2]
[346550851,1735077039004,-500.0,0.00013697,2]
[346550852,1735077039013,-500.0,0.00013697,2]
[346550854,1735077039023,-500.0,0.00013697,2]
[346550857,1735077039032,-500.0,0.00013697,2]
[346550859,1735077039042,-500.0,0.00013697,2]
[346550861,1735077039052,-500.0,0.00013697,2]
[346550863,1735077039061,-500.0,0.00013697,2]
[346550865,1735077039071,-500.0,0.00013697,2]
[346550867,1735077039080,-540.29307308,0.00013697,2]
[346550868,1735077039089,-500.0,0.00013697,2]
[346550869,1735077039098,-500.0,0.00013697,2]
[346550870,1735077039108,-500.0,0.00013697,2]
[346550871,1735077039117,-500.0,0.00013697,2]
[346550872,1735077039126,-500.0,0.00013697,2]
[346550873,1735077039136,-500.0,0.00013697,2]
[346550874,1735077039145,-500.0,0.00013697,2]
[346550875,1735077039154,-500.0,0.00013697,2]
[346550876,1735077039166,-288.79584527,0.00013697,2]
[346550877,1735077039176,-500.0,0.00013697,2]
[346550878,1735077039187,-240.83635429,0.00013697,2]
[346550879,1735077039200,-14836.84321675,0.00013697,2]
[346550880,1735077039210,-8387.28420228,0.00013698,2]
[346550881,1735077039219,-238.26221034,0.00013698,2]
[346550882,1735077039228,-500.0,0.00013698,2]
[346550883,1735077039238,-500.0,0.00013698,2]
[346550884,1735077039247,-500.0,0.00013698,2]
[346550885,1735077039257,-500.0,0.00013698,2]
[346550886,1735077039266,-500.0,0.00013698,2]
[346550887,1735077039276,-500.0,0.00013698,2]
[346550888,1735077039285,-500.0,0.00013698,2]
[346550889,1735077039295,-500.0,0.00013698,2]
[346550890,1735077039304,-500.0,0.00013698,2]
[346550891,1735077039313,-500.0,0.00013698,2]
[346550892,1735077039322,-556.37,0.00013698,2]
[346550893,1735077039332,-500.0,0.00013698,2]
[346550894,1735077039341,-311.63419869,0.00013698,2]
[346550895,1735077039350,-500.0,0.00013698,2]
[346550896,1735077039359,-500.0,0.00013698,2]
[346550897,1735077039368,-1152.83,0.00013698,2]
[346550898,1735077039378,-500.0,0.00013698,2]
[346550899,1735077039387,-500.0,0.00013698,2]
[346550900,1735077039396,-500.0,0.00013698,2]
[346550901,1735077039406,-500.0,0.00013698,2]
[346550902,1735077039417,-274.22527608,0.00013698,2]
[346550903,1735077039427,-500.0,0.00013698,2]
[346550904,1735077039437,-514.38,0.00013698,2]
[346550905,1735077039446,-500.0,0.00013698,2]
[346550906,1735077039455,-500.0,0.00013698,2]
[346550907,1735077039465,-500.0,0.00013698,2]
[346550908,1735077039474,-853.96,0.00013698,2]
[346550909,1735077039483,-500.0,0.00013698,2]
[346550910,1735077039493,-500.0,0.00013698,2]
[346550911,1735077039502,-500.0,0.00013698,2]
[346550912,1735077039512,-1000.0,0.00013698,2]
[346550913,1735077039522,-500.0,0.00013698,2]
[346550914,1735077039531,-500.0,0.00013698,2]
[346550915,1735077039540,-500.0,0.00013698,2]
[346550916,1735077039550,-500.0,0.00013698,2]
[346550917,1735077039559,-500.0,0.00013698,2]
[346550918,1735077039569,-500.0,0.00013698,2]
[346550919,1735077039578,-500.0,0.00013698,2]
[346550920,1735077039588,-500.0,0.00013698,2]
[346550921,1735077039598,-500.0,0.00013698,2]
[346550922,1735077039607,-852.8,0.00013698,4]
[346550923,1735077039617,-500.0,0.00013698,2]
[346550924,1735077039626,-500.0,0.00013698,2]
[346550925,1735077039635,-500.0,0.00013698,2]
[346550926,1735077039645,-500.0,0.00013698,2]
[346550927,1735077039654,-500.0,0.00013698,2]
[346550928,1735077039664,-500.0,0.00013698,2]
[346550929,1735077039673,-282.17622138,0.00013698,2]
[346550930,1735077039683,-542.15025085,0.00013698,2]
[346550931,1735077039692,-1103.43,0.00013698,2]
[346550932,1735077039701,-500.0,0.00013698,2]
[346550933,1735077039711,-500.0,0.00013698,2]
[346550934,1735077039720,-840.08,0.00013698,2]
[346550935,1735077039729,-1198.15,0.00013698,2]
[346550936,1735077039739,-494.24183651,0.00013698,2]
[346550937,1735077039748,-1142.89,0.00013698,2]
[346550938,1735077039758,-500.0,0.00013698,2]
[346550939,1735077039768,-500.0,0.00013698,2]
[346550941,1735077039778,-500.0,0.00013698,2]
[346550943,1735077039788,-500.0,0.00013698,2]
[346550945,1735077039797,-500.0,0.00013698,2]
[346550946,1735077039807,-500.0,0.00013698,2]
[346550947,1735077039816,-590.09,0.00013698,2]
[346550948,1735077039827,-706.29,0.00013698,2]
[346550949,1735077039836,-500.0,0.00013698,2]
[346550950,1735077039845,-587.3,0.00013698,2]
[346550951,1735077039855,-500.0,0.00013698,2]
[346550952,1735077039868,-500.0,0.00013698,2]
[346550953,1735077039878,-500.0,0.00013698,2]
[346550954,1735077039887,-2336.77,0.00013698,2]
[346550955,1735077039896,-500.0,0.00013698,2]
[346550957,1735077039908,-1001.1,0.00013698,2]
[346550958,1735077039918,-500.0,0.00013698,2]
[346550959,1735077039927,-500.0,0.00013698,2]
[346550960,1735077039937,-500.0,0.00013698,2]
[346550962,1735077039946,-500.0,0.00013698,2]
[346550964,1735077039955,-500.0,0.00013698,2]
[346550966,1735077039965,-552.95,0.00013698,2]
[346550968,1735077039974,-500.0,0.00013698,2]
[346550969,1735077039984,-500.0,0.00013698,2]
[346550970,1735077039993,-180.91991887,0.00013698,2]
[346550982,1735077040169,-586.34008113,0.00013698,2]
[346550983,1735077040178,-2326.66,0.00013698,2]
[346550984,1735077040187,-500.0,0.00013698,2]
[346550985,1735077040196,-500.0,0.00013698,2]
[346550986,1735077040206,-519.19,0.00013698,2]
[346550987,1735077040215,-1323.59,0.00013698,2]
[346550988,1735077040224,-500.0,0.00013698,2]
[346550989,1735077040234,-500.0,0.00013698,2]
[346550990,1735077040243,-500.0,0.00013698,2]
[346550991,1735077040252,-600.59,0.00013698,2]
[346550992,1735077040261,-500.0,0.00013698,2]
[346550993,1735077040270,-537.63,0.00013698,2]
[346550994,1735077040279,-500.0,0.00013698,2]
[346550996,1735077040289,-500.0,0.00013698,2]
[346550998,1735077040298,-500.0,0.00013698,2]
[346551000,1735077040307,-500.0,0.00013698,2]
[346551002,1735077040316,-500.0,0.00013698,2]
[346551004,1735077040326,-500.0,0.00013698,2]
[346551006,1735077040335,-500.0,0.00013698,2]
[346551008,1735077040345,-500.0,0.00013698,2]
[346551009,1735077040354,-500.0,0.00013698,2]
[346551010,1735077040363,-500.0,0.00013698,2]
[346551011,1735077040373,-500.0,0.00013698,2]
[346551012,1735077040382,-500.0,0.00013698,2]
[346551013,1735077040391,-506.97,0.00013698,2]
[346551015,1735077040400,-500.0,0.00013698,2]
[346551017,1735077040410,-500.0,0.00013698,2]
[346551018,1735077040419,-500.0,0.00013698,2]
[346551019,1735077040429,-1399.42,0.00013698,2]
[346551020,1735077040438,-500.0,0.00013698,2]
[346551021,1735077040448,-500.0,0.00013698,2]
[346551023,1735077040457,-500.0,0.00013698,2]
[346551025,1735077040466,-500.0,0.00013698,2]
[346551027,1735077040475,-1577.37,0.00013698,2]
[346551029,1735077040485,-500.0,0.00013698,2]
[346551030,1735077040494,-500.0,0.00013698,2]
[346551031,1735077040512,-500.0,0.00013698,2]
[346551032,1735077040525,-500.0,0.00013698,2]
[346551033,1735077040535,-500.0,0.00013698,2]
[346551034,1735077040545,-500.0,0.00013698,2]
[346551035,1735077040555,-571.25,0.00013698,2]
[346551036,1735077040564,-934.35,0.00013698,2]
[346551037,1735077040574,-500.0,0.00013698,2]
[346551038,1735077040584,-2964.26,0.00013698,2]
[346551039,1735077040594,-500.0,0.00013698,2]
[346551040,1735077040603,-500.0,0.00013698,2]
[346551041,1735077040613,-500.0,0.00013698,2]
[346551042,1735077040623,-600.27,0.00013698,2]
[346551043,1735077040633,-500.0,0.00013698,2]
[346551044,1735077040643,-500.0,0.00013698,2]
[346551045,1735077040653,-500.0,0.00013698,2]
[346551046,1735077040662,-500.0,0.00013698,2]
[346551047,1735077040672,-560.6644373,0.00013698,2]
[346551048,1735077040682,-502.21417895,0.00013698,2]
[346551049,1735077040691,-500.0,0.00013698,2]
[346551050,1735077040701,-770.63,0.00013698,2]
[346551051,1735077040711,-500.0,0.00013698,2]
[346551052,1735077040721,-500.0,0.00013698,2]
[346551053,1735077040731,-229.19,0.00013698,2]
[346551054,1735077040740,-206.11395756,0.00013698,2]
[346551055,1735077040750,-500.0,0.00013698,2]
[346551056,1735077040760,-563.01,0.00013698,2]
[346551057,1735077040770,-1857.71,0.00013698,2]
[346551058,1735077040780,-500.0,0.00013698,2]
[346551059,1735077040789,-764.91,0.00013698,2]
[346551060,1735077040799,-1163.39,0.00013698,2]
[346551061,1735077040809,-519.24,0.00013698,2]
[346551062,1735077040818,-500.0,0.00013698,2]
[346551063,1735077040828,-478.57681976,0.00013698,2]
[346551064,1735077040838,-500.0,0.00013698,2]
[346551065,1735077040847,-500.0,0.00013698,2]
[346551066,1735077040857,-1116.03,0.00013698,2]
[346551067,1735077040871,-500.0,0.00013698,2]
[346551068,1735077040880,-500.0,0.00013698,2]
[346551069,1735077040890,-1013.55,0.00013698,2]
[346551070,1735077040900,-594.42,0.00013698,2]
[346551071,1735077040910,-500.0,0.00013698,2]
[346551072,1735077040920,-500.0,0.00013698,2]
[346551073,1735077040930,-500.0,0.00013698,2]
[346551074,1735077040940,-500.0,0.00013698,2]
[346551075,1735077040951,-502.98698104,0.00013698,2]
[346551076,1735077040963,-3280.1,0.00013698,2]
[346551077,1735077040975,-966.77,0.00013698,2]
[346551078,1735077040987,-749.94,0.00013698,2]
[346551079,1735077040997,-500.0,0.00013698,2]
[346551080,1735077041007,-2616.16,0.00013698,2]
[346551081,1735077041016,-500.0,0.00013698,2]
[346551082,1735077041026,-500.0,0.00013698,2]
[346551083,1735077041036,-2611.56,0.00013698,2]
[346551084,1735077041045,-500.0,0.00013698,2]
[346551085,1735077041054,-500.0,0.00013698,2]
[346551086,1735077041064,-2309.44,0.00013698,2]
[346551087,1735077041073,-884.09,0.00013698,2]
[346551088,1735077041083,-500.0,0.00013698,2]
[346551089,1735077041092,-1274.31,0.00013698,2]
[346551090,1735077041102,-3138.87,0.00013698,2]
[346551091,1735077041113,-1359.05,0.00013698,2]
[346551092,1735077041123,-2286.59,0.00013698,2]
[346551093,1735077041133,-500.0,0.00013698,2]
[346551094,1735077041142,-1186.91,0.00013698,2]
[346551095,1735077041152,-500.0,0.00013698,2]
[346551096,1735077041161,-500.0,0.00013698,2]
[346551097,1735077041171,-1980.12,0.00013698,2]
[346551098,1735077041181,-500.0,0.00013698,2]
[346551099,1735077041190,-673.41,0.00013698,2]
[346551100,1735077041199,-506.50975542,0.00013698,2]
[346551101,1735077041209,-500.0,0.00013698,2]
[346551102,1735077041218,-510.09408565,0.00013698,2]
[346551103,1735077041227,-935.79,0.00013698,2]
[346551104,1735077041237,-871.04,0.00013698,2]
[346551105,1735077041246,-1412.8,0.00013698,2]
[346551106,1735077041255,-500.0,0.00013698,2]
[346551107,1735077041265,-500.0,0.00013698,2]
[346551108,1735077041274,-1106.76,0.00013698,2]
[346551109,1735077041283,-1190.67,0.00013698,2]
[346551110,1735077041293,-512.10233924,0.00013698,2]
[346551111,1735077041303,-1527.11,0.00013698,2]
[346551112,1735077041313,-500.0,0.00013698,2]
[346551113,1735077041323,-189.68882962,0.00013698,2]
[346551114,1735077041332,-597.70955452,0.00013698,2]
[346551115,1735077041348,-431.87044548,0.00013698,2]
[346551116,1735077041358,-669.22,0.00013698,2]
[346551117,1735077041367,-475.12023326,0.00013698,2]
[346551118,1735077041379,-2304.90976674,0.00013698,2]
[346551119,1735077041388,-647.61,0.00013698,2]
[346551120,1735077041398,-1172.67,0.00013698,2]
[346551121,1735077041408,-500.0,0.00013698,2]
[346551122,1735077041419,-1323.16,0.00013698,2]
[346551123,1735077041428,-500.0,0.00013698,2]
[346551124,1735077041441,-3701.65023326,0.00013698,2]
[346551125,1735077041793,-1378.58976674,0.00013698,2]
[346551126,1735077041802,-1710.36,0.00013698,2]
[346551127,1735077041812,-500.0,0.00013698,2]
[346551128,1735077041984,-753.15,0.00013698,2]
[346551129,1735077041996,-500.0,0.00013698,2]
[346551130,1735077042006,-656.67,0.00013698,2]
[346551131,1735077042015,-2264.61,0.00013698,2]
[346551132,1735077042025,-500.0,0.00013698,2]
[346551133,1735077042034,-500.0,0.00013698,2]
[346551134,1735077042043,-1224.56,0.00013698,2]
[346551135,1735077042053,-1111.4,0.00013698,2]
[346551136,1735077042062,-500.0,0.00013698,2]
[346551137,1735077042072,-925.74,0.00013698,2]
[346551138,1735077042083,-925.74,0.00013698,2]
[346551139,1735077042092,-500.0,0.00013698,2]
[346551140,1735077042102,-925.74,0.00013698,2]
[346551141,1735077042112,-925.74,0.00013698,2]
[346551142,1735077042122,-925.74,0.00013698,2]
[346551143,1735077042132,-500.0,0.00013698,2]
[346551144,1735077042141,-1397.48,0.00013698,2]
[346551145,1735077042150,-925.74,0.00013698,2]
[346551146,1735077042160,-925.74,0.00013698,2]
[346551147,1735077042171,-925.74,0.00013698,2]
[346551148,1735077042181,-925.74,0.00013698,2]
[346551149,1735077042191,-500.0,0.00013698,2]
[346551150,1735077042200,-925.74,0.00013698,2]
[346551151,1735077042209,-925.74,0.00013698,2]
[346551152,1735077042218,-925.74,0.00013698,2]
[346551153,1735077042228,-500.0,0.00013698,2]
[346551154,1735077042237,-925.74,0.00013698,2]
[346551155,1735077042246,-925.74,0.00013698,2]
[346551156,1735077042255,-925.74,0.00013698,2]
[346551157,1735077042265,-500.0,0.00013698,2]
[346551158,1735077042274,-925.74,0.00013698,2]
[346551159,1735077042283,-925.74,0.00013698,2]
[346551160,1735077042292,-925.74,0.00013698,2]
[346551161,1735077042302,-925.74,0.00013698,2]
[346551162,1735077042312,-925.74,0.00013698,2]
[346551163,1735077042321,-925.74,0.00013698,2]
[346551164,1735077042330,-925.74,0.00013698,2]
[346551165,1735077042341,-925.74,0.00013698,2]
[346551166,1735077042351,-925.77,0.00013698,2]
[346551167,1735077042360,-2312.89,0.00013698,2]
[346551168,1735077042369,-1319.6,0.00013698,2]
[346551169,1735077042378,-423.60396164,0.00013698,2]
[346551170,1735077042387,-500.0,0.00013698,2]
[346551171,1735077042397,-500.0,0.00013698,2]
[346551172,1735077042406,-500.0,0.00013698,2]
[346551173,1735077042416,-500.0,0.00013698,2]
[346551174,1735077042426,-939.74,0.00013698,2]
[346551175,1735077042436,-500.0,0.00013698,2]
[346551176,1735077042445,-500.0,0.00013698,2]
[346551177,1735077042455,-503.66,0.00013698,2]
[346551178,1735077042464,-500.0,0.00013698,2]
[346551179,1735077042473,-500.0,0.00013698,2]
[346551180,1735077042484,-500.0,0.00013698,2]
[346551181,1735077042493,-2983.19,0.00013698,2]
[346551182,1735077042503,-977.63,0.00013698,2]
[346551183,1735077042513,-21593.39,0.00013698,2]
[346551184,1735077042522,-632.98,0.00013698,2]
[346551185,1735077042532,-500.0,0.00013698,2]
[346551186,1735077042542,-500.0,0.00013698,2]
[346551187,1735077042553,-1535.63,0.00013698,2]
[346551188,1735077042563,-500.0,0.00013698,2]
[346551189,1735077042572,-3320.67,0.00013698,2]
[346551190,1735077042581,-500.0,0.00013698,2]
[346551191,1735077042590,-500.0,0.00013698,2]
[346551192,1735077042600,-616.27,0.00013698,2]
[346551193,1735077042609,-500.0,0.00013698,2]
[346551194,1735077042619,-1520.4,0.00013698,2]
[346551195,1735077042628,-2115.33,0.00013698,2]
[346551196,1735077042638,-500.0,0.00013698,2]
[346551197,1735077042647,-8272.2,0.00013698,2]
[346551198,1735077042657,-3236.01,0.00013698,2]
[346551199,1735077042666,-500.0,0.00013698,2]
[346551200,1735077042675,-500.0,0.00013698,2]
[346551201,1735077042684,-66439.29,0.00013698,2]
[346551202,1735077042693,-500.0,0.00013698,2]
[346551203,1735077042702,-500.0,0.00013698,2]
[346551204,1735077042711,-2542.83,0.00013698,2]
[346551205,1735077042721,-500.0,0.00013698,2]
[346551206,1735077042730,-14240.44,0.00013698,2]
[346551207,1735077042739,-500.0,0.00013698,2]
[346551208,1735077042748,-213.58819351,0.00013698,2]
[346551209,1735077042757,-692.53,0.00013698,2]
[346551210,1735077042768,-500.0,0.00013698,2]
[346551211,1735077042778,-500.0,0.00013698,2]
[346551212,1735077042787,-500.0,0.00013698,2]
[346551213,1735077042797,-17950.69,0.00013698,2]
[346551214,1735077042807,-500.0,0.00013698,2]
[346551215,1735077042816,-556.13,0.00013698,2]
[346551216,1735077042825,-500.0,0.00013698,2]
[346551217,1735077042835,-1762.91,0.00013698,2]
[346551219,1735077042843,-500.0,0.00013698,2]
[346551221,1735077042853,-500.0,0.00013698,2]
[346551223,1735077042866,-1369.35,0.00013698,2]
[346551224,1735077042876,-5673.51,0.00013698,2]
[346551225,1735077042885,-500.0,0.00013698,2]
[346551226,1735077042895,-500.0,0.00013698,2]
[346551227,1735077042905,-500.0,0.00013698,2]
[346551228,1735077042915,-500.0,0.00013698,2]
[346551229,1735077042924,-500.0,0.00013698,2]
[346551230,1735077042934,-665.1,0.00013698,2]
[346551231,1735077042944,-881.86,0.00013698,2]
[346551233,1735077042953,-500.0,0.00013698,2]
[346551235,1735077042962,-500.0,0.00013698,2]
[346551238,1735077042971,-868.96,0.00013698,2]
[346551239,1735077042980,-500.0,0.00013698,2]
[346551240,1735077042989,-500.0,0.00013698,2]
[346551241,1735077042999,-718.06,0.00013698,2]
[346551242,1735077043008,-500.0,0.00013698,2]
[346551243,1735077043017,-3114.93,0.00013698,2]
[346551245,1735077043027,-1544.42,0.00013698,2]
[346551247,1735077043037,-500.0,0.00013698,2]
[346551249,1735077043046,-7731.97,0.00013698,2]
[346551251,1735077043055,-187.4548583,0.00013699,2]
[346551253,1735077043065,-2533.54925732,0.00013735,2]
[346551255,1735077043074,-2533.54925732,0.00013804,2]
[346551257,1735077043084,-2533.54925732,0.00013872,2]
[346551259,1735077043093,-666.0,0.00013872,2]
[346551261,1735077043103,-530.697,0.00013892,2]
[346551263,1735077043112,-500.0,0.00013972,2]
[346551265,1735077043121,-500.0,0.00013972,2]
[346551267,1735077043130,-500.0,0.00013972,2]
[346551269,1735077043140,-500.0,0.00013972,2]
[346551270,1735077043149,-500.0,0.00013972,2]
[346551272,1735077043158,-556.37,0.00013972,2]
[346551274,1735077043168,-500.0,0.00013972,2]
[346551276,1735077043177,-588.90742446,0.00013972,2]
[346551278,1735077043187,-1152.83,0.00013972,2]
[346551280,1735077043196,-500.0,0.00013972,2]
[346551282,1735077043205,-500.0,0.00013972,2]
[346551284,1735077043215,-514.38,0.00013972,2]
[346551286,1735077043224,-500.0,0.00013972,2]
[346551288,1735077043233,-853.96,0.00013972,2]
[346551290,1735077043243,-500.0,0.00013972,2]
[346551292,1735077043252,-196.4,0.00013972,2]
[346551294,1735077043261,-500.0,0.00013972,2]
[346551296,1735077043271,-500.0,0.00013972,2]
[346551298,1735077043280,-180.57965802,0.00013972,2]
[346551300,1735077043289,-852.8,0.00013972,4]
[346551302,1735077043298,-500.0,0.00013972,2]
[346551304,1735077043309,-500.0,0.00013972,2]
[346551306,1735077043318,-533.3,0.00013972,2]
[346551308,1735077043327,-1103.43,0.00013972,2]
[346551310,1735077043336,-500.0,0.00013972,2]
[346551312,1735077043346,-840.08,0.00013972,2]
[346551314,1735077043355,-1198.15,0.00013972,2]
[346551316,1735077043365,-1142.89,0.00013972,2]
[346551318,1735077043373,-500.0,0.00013972,2]
[346551320,1735077043383,-633.32775132,0.00013972,2]
[346551322,1735077043392,-519.20820271,0.00013972,2]
[346551324,1735077043401,-600.55870853,0.00013972,2]
[346551326,1735077043410,-500.0,0.00013972,2]
[346551328,1735077043420,-590.09,0.00013972,2]
[346551330,1735077043429,-706.29,0.00013972,2]
[346551332,1735077043438,-500.0,0.00013972,2]
[346551334,1735077043448,-587.3,0.00013972,2]
[346551336,1735077043457,-500.0,0.00013972,2]
[346551338,1735077043466,-500.0,0.00013972,2]
[346551340,1735077043475,-2336.77,0.00013972,2]
[346551342,1735077043485,-500.0,0.00013972,2]
[346551344,1735077043494,-1001.1,0.00013972,2]
[346551346,1735077043503,-500.0,0.00013972,2]
[346551348,1735077043512,-500.0,0.00013972,2]
[346551350,1735077043522,-552.95,0.00013972,2]
[346551351,1735077043531,-767.26,0.00013972,2]
[346551353,1735077043540,-2326.66,0.00013972,2]
[346551354,1735077043549,-500.0,0.00013972,2]
[346551356,1735077043559,-519.19,0.00013972,2]
[346551358,1735077043568,-1323.59,0.00013972,2]
[346551359,1735077043577,-500.0,0.00013972,2]
[346551360,1735077043587,-500.0,0.00013972,2]
[346551361,1735077043596,-600.59,0.00013972,2]
[346551363,1735077043605,-500.0,0.00013972,2]
[346551364,1735077043614,-537.63,0.00013972,2]
[346551365,1735077043625,-500.0,0.00013972,2]
[346551366,1735077043634,-245.81285655,0.00013972,2]
[346551367,1735077043644,-500.0,0.00013972,2]
[346551368,1735077043653,-505.47956177,0.00013972,2]
[346551369,1735077043663,-500.0,0.00013972,2]
[346551370,1735077043673,-506.97,0.00013972,2]
[346551371,1735077043682,-500.0,0.00013972,2]
[346551372,1735077043691,-606.71465187,0.00013972,2]
[346551373,1735077043701,-1399.42,0.00013972,2]
[346551374,1735077043710,-500.0,0.00013972,2]
[346551375,1735077043718,-500.0,0.00013972,2]
[346551376,1735077043728,-500.0,0.00013972,2]
[346551377,1735077043737,-1577.37,0.00013972,2]
[346551378,1735077043746,-500.0,0.00013972,2]
[346551379,1735077043755,-500.0,0.00013972,2]
[346551380,1735077043765,-500.0,0.00013972,2]
[346551381,1735077043775,-500.0,0.00013972,2]
[346551382,1735077043784,-571.25,0.00013972,2]
[346551383,1735077043794,-934.35,0.00013972,2]
[346551384,1735077043803,-500.0,0.00013972,2]
[346551385,1735077043812,-2964.26,0.00013972,2]
[346551387,1735077043821,-500.0,0.00013972,2]
[346551388,1735077043831,-500.0,0.00013972,2]
[346551389,1735077043840,-191.09145468,0.00013972,2]
[346551390,1735077043849,-600.27,0.00013972,2]
[346551392,1735077043861,-500.0,0.00013972,2]
[346551393,1735077043871,-500.0,0.00013972,2]
[346551394,1735077043881,-770.63,0.00013972,2]
[346551395,1735077043890,-229.19,0.00013972,2]
[346551396,1735077043900,-500.0,0.00013972,2]
[346551397,1735077043909,-563.01,0.00013972,2]
[346551398,1735077043919,-1857.71,0.00013972,2]
[346551399,1735077043929,-500.0,0.00013972,2]
[346551400,1735077043939,-764.91,0.00013972,2]
[346551401,1735077043948,-1163.39,0.00013972,2]
[346551402,1735077043958,-519.24,0.00013972,2]
[346551403,1735077043967,-500.0,0.00013972,2]
[346551404,1735077043976,-500.0,0.00013972,2]
[346551405,1735077043986,-1116.03,0.00013972,2]
[346551406,1735077043996,-594.42,0.00013972,2]
[346551407,1735077044005,-500.0,0.00013972,2]
[346551408,1735077044015,-500.0,0.00013972,2]
[346551409,1735077044025,-500.0,0.00013972,2]
[346551410,1735077044034,-3280.1,0.00013972,2]
[346551411,1735077044043,-966.77,0.00013972,2]
[346551412,1735077044053,-749.94,0.00013972,2]
[346551413,1735077044062,-500.0,0.00013972,2]
[346551414,1735077044071,-501.2,0.00013972,2]
[346551415,1735077044081,-2611.56,0.00013972,2]
[346551416,1735077044090,-2309.44,0.00013972,2]
[346551417,1735077044099,-884.09,0.00013972,2]
[346551418,1735077044109,-1274.31,0.00013972,2]
[346551419,1735077044118,-3138.87,0.00013972,2]
[346551420,1735077044128,-1359.05,0.00013972,2]
[346551421,1735077044137,-2286.59,0.00013972,2]
[346551422,1735077044146,-1186.91,0.00013972,2]
[346551423,1735077044155,-271.87271591,0.00013972,2]
[346551424,1735077044164,-500.0,0.00013972,2]
[346551425,1735077044174,-1980.12,0.00013972,2]
[346551426,1735077044183,-500.0,0.00013972,2]
[346551427,1735077044193,-673.41,0.00013972,2]
[346551428,1735077044202,-935.79,0.00013972,2]
[346551429,1735077044212,-871.04,0.00013972,2]
[346551430,1735077044221,-1412.8,0.00013972,2]
[346551431,1735077044230,-500.0,0.00013972,2]
[346551432,1735077044239,-1106.76,0.00013972,2]
[346551433,1735077044250,-1190.67,0.00013972,2]
[346551434,1735077044259,-1527.11,0.00013972,2]
[346551435,1735077044268,-1029.58,0.00013972,2]
[346551436,1735077044278,-669.22,0.00013972,2]
[346551437,1735077044287,-2780.03,0.00013972,2]
[346551438,1735077044296,-647.61,0.00013972,2]
[346551439,1735077044306,-1172.67,0.00013972,2]
[346551440,1735077044315,-1323.16,0.00013972,2]